[Event "Israeli Championship 2022"]
[Site "Yosiah Arad"]
[Date "2022.12.11"]
[Round "7.4"]
[White "Kobo, Ori"]
[Black "Erenberg, Ariel"]
[Result "1/2-1/2"]
[ECO "C02"]
[WhiteElo "2554"]
[BlackElo "2514"]
[Annotator "TA"]
[PlyCount "106"]
[EventDate "2022.12.05"]
[EventType "swiss"]
[EventCountry "ISR"]
[SourceTitle "playchess.com"]
[Source "ChessBase"]
[SourceQuality "1"]
[TimeControl "40/5400+30:1800+30"]

{[%evp 18,106,0,0,0,0,20,26,46,47,74,89,109,111,210,214,189,191,185,196,200,191,170,98,108,108,100,108,105,106,93,93,170,196,211,200,290,268,293,300,268,263,542,521,487,562,527,187,187,187,187,180,579,575,29973,29974,29974,29975,29975,85,29976,29977,29977,28,16,41,16,-2,-9,-135,-21,-41,0,0,0,0,0,0,0,0,0,0,0,0,0,0,0,0,0,0,0]} 1. e4 {[%emt 0:00:10]} c6 {[%emt 0:00:30]} 2. Nf3 {[%emt 0:00:22]} d5 {[%emt 0:00:05]} 3. e5 {[%emt 0:01:14]} Bf5 {[%emt 0:04:38]} 4. Nh4 {[%emt 0:01:10]} Bd7 {[%emt 0:02:40]} 5. d4 {[%emt 0:00:37]} c5 {[%emt 0:06:03]} 6. c3 {[%emt 0:05:21]} Nc6 {[%emt 0:01:03]} 7. dxc5 {[%emt 0:04:58]} e6 {[%emt 0:00:47]} 8. Nf3 {[%emt 0:00:08]} Bxc5 {[%emt 0:01:34]} 9. Bd3 {[%emt 0:03:02]} Nge7 {[%emt 0:05:27]} 10. O-O {[%emt 0:09:32]} Ng6 {[%emt 0:02:52] C02: French: Advance Variation.} 11. Re1 {[%emt 0:01:27]} Bb6 {[%emt 0:00:07]} 12. Na3 {[%emt 0:07:38]} a6 {[%emt 0:00:13] [#] White has an edge.} 13. c4 $146 {[%emt 0:03:22]} ({Predecessor:} 13. Be3 Bc7 14. Bd4 Nxd4 15. cxd4 O-O 16. Qd2 b5 17. b4 Bb6 18. Bxg6 fxg6 19. Nc2 Qe7 20. a3 h6 21. Qd3 {1-0 (75) Unger,G-Liermann,H DDR 1975}) 13... d4 {[%emt 0:00:58]} 14. Nc2 {[%emt 0:04:32]} Qe7 {[%emt 0:22:08]} 15. b4 {[%emt 0:08:54]} Nxb4 {[%emt 0:03:39]} (15... O-O $16) 16. Nxb4 $18 {[%emt 0:00:25]} Qxb4 {[%emt 0:00:01]} 17. Rb1 {[%emt 0:00:48]} Qc5 {[%emt 0:02:15]} 18. Qb3 {[%emt 0:02:33][%mdl 1024] White has strong compensation.} Ba5 {[%emt 0:04:30]} 19. Ba3 {[%emt 0:01:39]} (19. Qxb7 Bc6 20. Qb3 Bxe1 $17) 19... Qa7 {[%emt 0:01:54]} 20. Ng5 {[%emt 0:09:16]} Bc6 {[%emt 0:18:04] [#]} 21. Ne4 $1 {[%emt 0:01:33] White is much more active. The black rooks are badly placed.} Rd8 {[%emt 0:07:17][%cal Og6e5]} (21... Bxe1 $6 22. Rxe1 Ne7 23. Bc5 $11 (23. Qb4 b5 $15)) 22. Nd6+ {[%emt 0:07:25]} Rxd6 {[%emt 0:00:03]} 23. Bxd6 {[%emt 0:00:12][%cal Oe1e4] Black must now prevent Re4!} Bxe1 {[%emt 0:00:06]} 24. Rxe1 {[%emt 0:00:07]} Kd7 {[%emt 0:01:47]} (24... h6 $16 {keeps fighting.}) 25. Be4 {[%emt 0:04:47] A strong pair of Bishops.} Rc8 {[%emt 0:00:47] [#]} 26. c5 $1 {[%emt 0:03:14]} Ne7 {[%emt 0:04:22]} (26... Bxe4 $142 27. Rxe4 b6) 27. Bxc6+ {[%emt 0:04:15]} (27. Bxh7 g6 $14) 27... Rxc6 {[%emt 0:01:07]} 28. Qf3 {[%emt 0:06:41]} Ke8 {[%emt 0:01:31]} 29. Qe4 {[%emt 0:00:40][%csl LRd4,LRh7]} Nf5 $2 {[%emt 0:02:21] [#]} (29... g6 30. Qh4 (30. Qxd4 Nf5 $18) 30... b6 31. cxb6 (31. Qxd4 bxc5 32. Qh4 Nf5 $11) 31... Qb7 32. Qxh7 (32. Qxd4 Rxb6 33. Bxe7 Kxe7 $11) 32... Qxb6) 30. g4 $1 {[%emt 0:00:43]} Nxd6 {[%emt 0:00:11]} 31. cxd6 {[%emt 0:00:03][%mdl 4096] Endgame KQR-KQR} g6 {[%emt 0:03:10]} 32. Qf4 $2 {[%emt 0:00:37]} (32. Qf3 {And now Qf6 would win.} d3 33. Rd1 (33. Qxd3 Qc5 $16)) 32... b5 {[%emt 0:02:54]} 33. Rd1 {[%emt 0:02:58]} Rc4 {[%emt 0:00:24][%cal Od4d3]} 34. h3 {[%emt 0:02:19]} f5 $2 {[%emt 0:01:20]} (34... Qb7 35. Qf6 (35. Rxd4 g5 $16) 35... Rc3) 35. exf6 {[%emt 0:00:53] Threatens to win with Qh6.} Kf7 {[%emt 0:00:23]} 36. Qh6 {[%emt 0:01:52]} Kxf6 {[%emt 0:00:12]} 37. Qf8+ {[%emt 0:01:45]} Ke5 {[%emt 0:00:43]} 38. Re1+ {[%emt 0:00:17]} Kd5 {[%emt 0:00:04]} 39. Qe8 {[%emt 0:00:38] Inhibits Qd7.} Kxd6 {[%emt 0:01:18]} 40. Qxe6+ $2 {[%emt 0:00:24]} (40. Rxe6+ {mates} Kd5 41. Re5+ Kd6 42. Qe6+ Kc7 43. Qf7+ Kd6 44. Re6+ Kd5 45. Re7+ Kc5 46. Rxa7) 40... Kc5 $11 {[%emt 0:00:19]} 41. a3 {[%emt 0:04:44][%cal Re1e5]} d3 {[%emt 0:00:13]} 42. Re5+ {[%emt 0:06:13]} ({But not} 42. Qe3+ Rd4 $14) (42. Qf6 $5 {[%cal Re1e5]} Rd4 43. Rc1+ Rc4 44. Qe5+ Kb6 45. Qd6+ Kb7 46. Qd5+ (46. Re1 Qb6 $11) 46... Kb8 47. Qg8+ (47. Rxc4 bxc4 48. Qg8+ Kb7 $16) 47... Kb7 48. Rxc4 (48. Qxh7+ Ka8 $11) 48... bxc4 49. Qxc4 $16) 42... Kd4 {[%emt 0:00:09]} 43. Rd5+ {[%emt 0:09:25]} Kc3 {[%emt 0:00:06]} 44. Qd6 $1 {[%emt 0:11:57]} Rd4 {[%emt 0:03:06]} (44... Kb2 $5 {[%cal Ra7c7]} 45. Rxd3 Rc1+ 46. Kg2 Qb7+ 47. Rf3 Rg1+ 48. Kxg1 Qxf3 $11) 45. Rc5+ {[%emt 0:00:06] The position is equal.} Qxc5 {[%emt 0:04:08]} 46. Qxc5+ {[%emt 0:00:01] KQ-KR} Rc4 {[%emt 0:00:07]} 47. Qe5+ {[%emt 0:00:45]} Kc2 {[%emt 0:00:24] Hoping for ...d2.} 48. Qa1 $1 {[%emt 0:00:42]} d2 {[%emt 0:00:41]} 49. Qa2+ {[%emt 0:00:03]} Kd3 {[%emt 0:05:46]} (49... Kc1 $5 50. Qa1+ $8 Kc2 51. Qa2+ Kc1 52. Qa1+ Kc2 $11) 50. Qb1+ {[%emt 0:01:07]} Kc3 {[%emt 0:07:59]} 51. Qa1+ {[%emt 0:00:40]} Kc2 {[%emt 0:04:23]} (51... Kd3 $5 52. Qb1+ $8 Kc3 $11) 52. Qa2+ {[%emt 0:00:02]} Kc1 {[%emt 0:01:43]} 53. Qa1+ {[%emt 0:00:17]} Kc2 {[%emt 0:00:08] Blacks defense is rewarded with a draw.   Weighted Error Value: White=0.27 (precise) /Black=0.47} 1/2-1/2

[Event "Israeli Championship 2022"]
[Site "Yosiah Arad"]
[Date "2022.12.11"]
[Round "7.5"]
[White "Mikhalevski, Victor"]
[Black "Zanan, Evgeny"]
[Result "1/2-1/2"]
[ECO "A26"]
[WhiteElo "2517"]
[BlackElo "2485"]
[Annotator "TA"]
[PlyCount "274"]
[EventDate "2022.12.05"]
[EventType "swiss"]
[EventCountry "ISR"]
[SourceTitle "playchess.com"]
[Source "ChessBase"]
[SourceQuality "1"]
[TimeControl "40/5400+30:1800+30"]

{[%evp 109,274,-46,-43,-117,-127,-192,-212,-156,-161,-248,-185,-238,-232,-237,-232,-206,-188,-230,-110,-110,-110,-110,-22,-29,-29,-26,-26,-27,-18,-31,-42,-50,0,-36,0,0,0,0,0,0,0,0,0,-22,0,0,0,-95,-29,-94,-109,-100,354,-58,-89,-238,0,0,0,0,0,0,8,0,8,8,8,8,8,8,8,8,8,8,8,8,8,8,8,8,8,8,15,15,15,15,15,8,8,8,15,8,15,15,15,15,15,8,8,8,15,8,15,8,15,15,15,15,15,15,15,15,15,15,15,15,15,8,15,8,15,15,15,15,15,15,15,15,15,15,15,15,15,15,15,0,15,15,15,8,8,0,8,8,8,8,8,8,8,8,8,8,8,8,8,8,8,8,8,0,8,0,0,0,0,0,0]} 1. c4 {[%emt 0:00:05]} e5 {[%emt 0:01:14]} 2. g3 {[%emt 0:00:08]} Nc6 {[%emt 0:00:28]} 3. Bg2 {[%emt 0:00:07]} g6 {[%emt 0:00:18]} 4. Nc3 {[%emt 0:00:12]} Bg7 {[%emt 0:00:06]} 5. Rb1 {[%emt 0:01:18]} a5 {[%emt 0:01:14]} 6. a3 {[%emt 0:00:14]} d6 {[%emt 0:12:22]} 7. b4 {[%emt 0:02:03]} axb4 {[%emt 0:00:47]} 8. axb4 {[%emt 0:00:05]} f5 {[%emt 0:05:20]} 9. b5 {[%emt 0:02:35]} Nce7 {[%emt 0:01:47]} 10. d3 {[%emt 0:00:41]} Nf6 {[%emt 0:00:19]} 11. Nf3 {[%emt 0:16:01]} O-O {[%emt 0:03:05]} 12. O-O {[%emt 0:00:54]} h6 {[%emt 0:03:51]} 13. c5 {[%emt 0:09:24]} Be6 {[%emt 0:14:42]} 14. b6 {[%emt 0:02:46]} c6 {[%emt 0:04:30]} 15. cxd6 {[%emt 0:05:20]} Qxd6 {[%emt 0:03:44]} 16. e4 {[%emt 0:18:47]} g5 {[%emt 0:20:19]} 17. Bb2 {[%emt 0:14:01]} Ng6 {[%emt 0:01:30]} 18. exf5 {[%emt 0:02:29]} Bxf5 {[%emt 0:00:05]} 19. Qb3+ {[%emt 0:09:44]} Kh8 {[%emt 0:02:25]} 20. Rfd1 {[%emt 0:01:48]} Qe7 {[%emt 0:07:55]} 21. Rbc1 {[%emt 0:04:06]} Be6 {[%emt 0:09:59]} 22. Qc2 {[%emt 0:00:05]} Qf7 {[%emt 0:00:18]} 23. Re1 {[%emt 0:01:16]} Nd5 {[%emt 0:03:07]} 24. Ne4 {[%emt 0:05:32]} g4 {[%emt 0:00:43]} 25. Nfd2 {[%emt 0:00:55]} Nb4 {[%emt 0:00:06]} 26. Qc3 {[%emt 0:00:56]} Na2 {[%emt 0:00:11]} 27. Qc5 {[%emt 0:00:00]} Nxc1 {[%emt 0:00:14]} 28. Rxc1 {[%emt 0:00:05]} Ra2 {[%emt 0:01:18]} 29. Bc3 {[%emt 0:00:25]} Rd8 {[%emt 0:01:29]} 30. Qe3 {[%emt 0:01:21]} Ne7 {[%emt 0:00:53]} 31. Nc5 {[%emt 0:00:13]} Nf5 {[%emt 0:00:34]} 32. Qe1 {[%emt 0:00:32]} Nd4 {[%emt 0:00:56]} 33. Bxd4 {[%emt 0:01:14]} Rxd4 {[%emt 0:00:06]} 34. Nde4 {[%emt 0:00:06]} Bf5 {[%emt 0:00:40]} 35. Ra1 {[%emt 0:00:29]} Rb2 {[%emt 0:00:35]} 36. Rb1 {[%emt 0:01:53]} Rdb4 {[%emt 0:00:34]} 37. Qxb4 {[%emt 0:00:22]} Rxb4 {[%emt 0:00:05]} 38. Rxb4 {[%emt 0:00:03]} Bf8 {[%emt 0:00:47]} 39. Ra4 {[%emt 0:00:29]} Bxe4 {[%emt 0:00:17]} 40. Nxe4 {[%emt 0:00:02]} Qb3 {[%emt 0:00:42]} 41. Ra8 {[%emt 0:03:08]} Kg7 {[%emt 0:06:43]} 42. Rd8 {[%emt 0:02:30]} Qxb6 {[%emt 0:03:26]} 43. Rd7+ {[%emt 0:00:23]} Kg6 {[%emt 0:00:32]} 44. h3 {[%emt 0:00:17]} gxh3 {[%emt 0:14:24]} 45. Bxh3 {[%emt 0:00:11]} Qb3 {[%emt 0:01:19]} 46. Kg2 {[%emt 0:02:09]} b5 {[%emt 0:01:36]} 47. Nd2 {[%emt 0:06:54]} Qb2 {[%emt 0:01:04]} 48. Ne4 {[%emt 0:00:05]} Qb3 {[%emt 0:02:00]} 49. Nd2 {[%emt 0:00:27]} Qa2 {[%emt 0:03:43]} 50. Ne4 {[%emt 0:00:15]} Qb3 {[%emt 0:00:30]} 51. Rc7 {[%emt 0:04:33]} Qxd3 {[%emt 0:00:33]} 52. Rxc6+ {[%emt 0:00:06]} Kg7 {[%emt 0:00:31]} 53. Bf5 {[%emt 0:01:25]} Qd8 {[%emt 0:00:25]} 54. Rg6+ {[%emt 0:01:09]} Kf7 {[%emt 0:00:04]} 55. Ra6 {[%emt 0:00:11]} Qc7 {[%emt 0:00:58]} (55... b4 {simplifies} 56. g4 Qe7 57. Rd6 Qxd6 58. Nxd6+ Bxd6 59. Bc2 Bc5) 56. Be6+ {[%emt 0:02:38]} (56. Rf6+ $15 Ke7 57. Re6+ Kd8 58. Nf6) 56... Kg7 $1 $17 {[%emt 0:00:14]} 57. Bd5 {[%emt 0:00:19]} (57. Bf5 $17 {might work better.}) 57... Be7 {[%emt 0:00:25]} 58. Re6 {[%emt 0:04:11]} b4 {[%emt 0:00:47]} 59. g4 {[%emt 0:00:23]} (59. Bb3 $142) 59... Bh4 {[%emt 0:00:36]} 60. Nd6 {[%emt 0:00:42]} (60. Rd6 {was necessary.}) 60... Qc5 $19 {[%emt 0:00:05]} 61. Nf5+ {[%emt 0:00:23]} Kf8 {[%emt 0:00:13]} 62. Ne3 {[%emt 0:06:26]} Bg5 {[%emt 0:00:39]} 63. Rc6 {[%emt 0:00:10]} Qb5 {[%emt 0:01:04]} (63... Qa5 $19 {White must now prevent ...Bxe3.} 64. Rc8+ Ke7) 64. Rc8+ $17 {[%emt 0:00:17]} Ke7 {[%emt 0:00:15]} 65. Bc6 {[%emt 0:00:10]} Qa6 {[%emt 0:00:44]} (65... Qe2 $17 66. Nf5+ Ke6) 66. Nf5+ $11 {[%emt 0:00:13]} Ke6 {[%emt 0:00:31]} 67. Re8+ $1 {[%emt 0:02:18]} Kf7 {[%emt 0:00:24]} 68. Rc8 $1 {[%emt 0:01:01]} Qa5 {[%emt 0:00:32]} (68... Qxc8 $2 69. Nd6+ Ke7 70. Nxc8+ $18) 69. Rb8 {[%emt 0:00:36]} Qc5 {[%emt 0:00:22]} 70. Rb7+ {[%emt 0:00:28]} Kf8 {[%emt 0:00:24]} (70... Ke6 $15 71. Be4 Qa5) 71. Be4 {[%emt 0:00:57]} Bd2 {[%emt 0:00:35]} (71... Bd8 $5) 72. Rb8+ {[%emt 0:00:42]} Kf7 {[%emt 0:00:06]} 73. Rb5 {[%emt 0:00:07]} Qc3 {[%emt 0:00:50]} (73... Qxb5 $2 74. Nd6+ Kf6 75. Nxb5 $18) 74. Rb6 {[%emt 0:01:05]} Qc5 {[%emt 0:00:30]} 75. Rc6 {[%emt 0:00:55]} Qa5 {[%emt 0:00:41]} 76. Nd6+ {[%emt 0:00:18]} (76. Rd6 $5 {[%cal Rd6d2]} Bg5 77. Rd7+ Ke8 78. Rb7 $15) 76... Kg7 {[%emt 0:00:16]} (76... Kf8 $5 {[%cal Rd2e1]} 77. Rc8+ (77. Nc4 Qa1 $17) 77... Ke7 78. Nf5+ Kd7 $17) 77. Nc4 {[%emt 0:00:43]} Qa2 {[%emt 0:00:15]} 78. Nxe5 {[%emt 0:01:01] [#]} (78. Rc7+ $11 Kf6 79. Bd5 (79. Rc6+ Kf7 $11)) 78... Bc3 {[%emt 0:01:05]} ({Black should try} 78... Bg5 $1 $17) 79. Rc7+ {[%emt 0:00:49]} (79. Nd3 $1 $11 {remains equal.}) 79... Kf6 $17 {[%emt 0:00:18]} 80. Nd7+ {[%emt 0:00:18] [#]} Kg5 $2 {[%emt 0:00:28][%mdl 8192]} (80... Ke6 $1 $17 {[%cal Re6d6] and life is bright.} 81. Nc5+ Ke5) 81. Rc5+ $2 {[%emt 0:00:24]} ({Only move:} 81. Kg3 $18 {[%csl Gg3][%cal Rf2f4]} Be5+ 82. Nxe5) 81... Kxg4 $15 {[%emt 0:00:41]} 82. Nf8 {[%emt 0:00:51]} (82. Rd5 $17 Qe2 83. Nc5) 82... Qxf2+ $2 {[%emt 0:00:35]} (82... Kf4 $19 83. Bd5 Qa7 84. Ne6+ Ke5 85. Bb3+ Kf6) 83. Kxf2 $11 {[%emt 0:00:05]} Bd4+ {[%emt 0:00:02]} 84. Ke2 {[%emt 0:00:07]} Bxc5 {[%emt 0:00:05]} 85. Ne6 {[%emt 0:00:07]} Bb6 {[%emt 0:00:05]} 86. Bd5 {[%emt 0:01:07]} h5 {[%emt 0:00:13]} 87. Bf3+ {[%emt 0:00:05]} Kf5 {[%emt 0:00:21]} 88. Ng7+ {[%emt 0:00:07]} Kg6 {[%emt 0:00:10]} 89. Nxh5 {[%emt 0:00:48]} Bc7 {[%emt 0:00:12]} 90. Kd3 {[%emt 0:00:03]} Be5 {[%emt 0:01:04]} 91. Kc4 {[%emt 0:00:12]} Bd6 {[%emt 0:00:16]} 92. Bd1 {[%emt 0:00:22]} Kf5 {[%emt 0:01:49]} 93. Bc2+ {[%emt 0:00:21]} Kg5 {[%emt 0:00:45]} 94. Ng7 {[%emt 0:00:05]} Kf6 {[%emt 0:00:11]} 95. Nf5 {[%emt 0:00:04]} Bf8 {[%emt 0:00:04]} 96. Nd4 {[%emt 0:00:21]} Be7 {[%emt 0:00:19]} 97. Kd5 {[%emt 0:00:08]} Bf8 {[%emt 0:00:06]} 98. Nc6 {[%emt 0:00:58]} Kg5 {[%emt 0:00:50]} 99. Ke4 {[%emt 0:00:55]} Kf6 {[%emt 0:00:10]} 100. Bb3 {[%emt 0:00:04]} Bd6 {[%emt 0:00:13]} 101. Kd5 {[%emt 0:01:09]} Bf8 {[%emt 0:00:23]} 102. Nd4 {[%emt 0:00:09]} Bh6 {[%emt 0:00:17]} 103. Nf3 {[%emt 0:00:20]} Kf5 {[%emt 0:00:47]} 104. Bc2+ {[%emt 0:00:06]} Kf6 {[%emt 0:00:10]} 105. Ne5 {[%emt 0:00:53]} Bd2 {[%emt 0:00:27]} 106. Nd7+ {[%emt 0:00:08]} Ke7 {[%emt 0:00:37]} 107. Nc5 {[%emt 0:00:09]} Bc3 {[%emt 0:00:04]} 108. Ne4 {[%emt 0:00:24]} Kf7 {[%emt 0:00:06]} 109. Kd6 {[%emt 0:00:09]} Bb2 {[%emt 0:00:21]} 110. Bb3+ {[%emt 0:00:05]} Kg7 {[%emt 0:00:09]} 111. Ke6 {[%emt 0:00:05]} Bc3 {[%emt 0:00:17]} 112. Bc2 {[%emt 0:00:08]} Bb2 {[%emt 0:00:11]} 113. Nd6 {[%emt 0:00:27]} Bc3 {[%emt 0:00:20]} 114. Nc8 {[%emt 0:01:12]} Bf6 {[%emt 0:00:12]} 115. Nb6 {[%emt 0:00:10]} Bc3 {[%emt 0:00:08]} 116. Nd5 {[%emt 0:00:06]} Bd2 {[%emt 0:00:10]} 117. Kf5 {[%emt 0:00:37]} Kf7 {[%emt 0:00:32]} 118. Bb3 {[%emt 0:00:05]} Kg7 {[%emt 0:00:04]} 119. Nf6 {[%emt 0:00:38]} Bc3 {[%emt 0:00:05]} 120. Nh5+ {[%emt 0:00:09]} Kh6 {[%emt 0:00:22]} 121. Nf4 {[%emt 0:01:29]} Kg7 {[%emt 0:00:21]} 122. Nh5+ {[%emt 0:01:11]} Kh6 {[%emt 0:00:06]} 123. Ng3 {[%emt 0:00:04]} Kg7 {[%emt 0:00:04]} 124. Kg5 {[%emt 0:00:18]} Bd2+ {[%emt 0:00:05]} 125. Kh5 {[%emt 0:00:02]} Bc3 {[%emt 0:00:05]} 126. Ne4 {[%emt 0:00:05]} Bd4 {[%emt 0:00:11]} 127. Kg5 {[%emt 0:00:20]} Be3+ {[%emt 0:00:09]} 128. Kf5 {[%emt 0:00:11]} Bd4 {[%emt 0:00:05]} 129. Ng5 {[%emt 0:00:18]} Bc3 {[%emt 0:00:05]} 130. Bc4 {[%emt 0:00:05]} Bb2 {[%emt 0:00:11]} 131. Ne6+ {[%emt 0:00:08]} Kh6 {[%emt 0:00:06]} 132. Bd3 {[%emt 0:00:24]} Bc3 {[%emt 0:00:10]} 133. Bc2 {[%emt 0:00:04]} Bb2 {[%emt 0:00:06]} 134. Nc7 {[%emt 0:00:21]} Kg7 {[%emt 0:00:07]} 135. Bb3 {[%emt 0:00:17]} Bc3 {[%emt 0:00:05]} 136. Bc4 {[%emt 0:00:33]} Bb2 {[%emt 0:00:06]} 137. Ne6+ {[%emt 0:00:20]} Kh6 {[%emt 0:00:06]} 1/2-1/2

[Event "Israeli Championship 2022"]
[Site "Yosiah Arad"]
[Date "2022.12.11"]
[Round "7.6"]
[White "Gorodetzky, David"]
[Black "Levin, Guy"]
[Result "0-1"]
[ECO "E51"]
[WhiteElo "2495"]
[BlackElo "2382"]
[Annotator "TA"]
[PlyCount "82"]
[EventDate "2022.12.05"]
[EventType "swiss"]
[EventCountry "ISR"]
[SourceTitle "playchess.com"]
[Source "ChessBase"]
[SourceQuality "1"]
[TimeControl "40/5400+30:1800+30"]

{[%evp 11,82,-6,0,0,18,9,29,38,20,0,23,0,10,0,0,0,0,0,-2,-12,-12,0,0,-8,-11,-7,-4,-5,-10,-4,-10,-54,-16,-135,-129,-134,-146,-137,-142,-188,-84,-104,-106,-108,-120,-88,-89,-90,-82,-102,-130,-120,-79,-418,-445,-513,-479,-592,-581,-29971,-625,-607,-575,-603,-566,-816,-802,-1099,-1007,-3401,-2045,-883,-840]} 1. d4 {[%emt 0:00:08]} d5 {[%emt 0:00:17]} 2. c4 {[%emt 0:00:26]} e6 {[%emt 0:00:06]} 3. Nc3 {[%emt 0:01:17]} Bb4 {[%emt 0:00:09]} 4. e3 {[%emt 0:07:48]} Nf6 {[%emt 0:02:38]} 5. Bd2 {[%emt 0:02:18]} O-O {[%emt 0:03:07]} 6. Nf3 {[%emt 0:01:23]} b6 {[%emt 0:07:52]} 7. Rc1 {[%emt 0:05:45] E51: Nimzo-Indian: Rubinstein: 4...0-0 5 Nf3 d5.} c5 {[%emt 0:02:23]} 8. a3 {[%emt 0:13:57]} Ba5 {[%emt 0:03:22]} 9. cxd5 {[%emt 0:09:54] White has an edge.} exd5 {[%emt 0:03:17]} 10. Be2 {[%emt 0:04:13] [#] 10.Ne5 is setting a new trend.} Ba6 $146 {[%emt 0:08:29]} ({Predecessor:} 10... Bg4 11. O-O Ne4 12. dxc5 bxc5 13. Nxe4 dxe4 14. Bxa5 Qxa5 15. Ng5 Bxe2 16. Qxe2 Qa6 {1-0 (38) Sundararajan,K (2427)-Birkisson,B (2212) Reykjavik 2018}) 11. Ne5 {[%emt 0:14:13]} Bxe2 {[%emt 0:04:53]} 12. Qxe2 {[%emt 0:00:03]} Bxc3 {[%emt 0:09:10]} 13. Bxc3 {[%emt 0:01:27]} c4 {[%emt 0:02:37]} 14. b3 {[%emt 0:06:50]} b5 {[%emt 0:06:01]} 15. O-O {[%emt 0:06:11]} Ne4 {[%emt 0:05:19]} 16. Bb4 {[%emt 0:08:54][%cal Rb3c4]} (16. bxc4 {seems wilder.} bxc4 17. Bb4 Re8 18. Qh5) 16... Re8 $1 {[%emt 0:00:26]} 17. bxc4 {[%emt 0:01:50]} (17. Qh5 {feels hotter.} g6 18. Qh6 a5 19. f3) 17... bxc4 {[%emt 0:02:31]} 18. f3 $132 {[%emt 0:00:55][%mdl 2048] Inhibits a5. White is not keeping still} (18. Qh5 {keeps more tension.} g6 19. Qh6 Nd7 20. f3) 18... Ng5 {[%emt 0:01:34]} 19. e4 {[%emt 0:02:16]} f6 {[%emt 0:02:06]} 20. Ng4 {[%emt 0:03:16]} Nc6 {[%emt 0:02:44]} 21. Bc5 {[%emt 0:04:29]} f5 {[%emt 0:04:23]} (21... dxe4 22. fxe4 (22. Rxc4 $2 exf3 23. Qd3 fxg2 $19) (22. Qxc4+ Kh8 $11) 22... Nxe4 23. Qxc4+ (23. Rxc4 $2 Na5 $19) 23... Kh8 24. Rfd1 $11) 22. Nf2 {[%emt 0:01:24]} (22. Ne3 $1 $11 {keeps the balance.}) 22... fxe4 $17 {[%emt 0:07:37]} 23. fxe4 {[%emt 0:00:02]} Nxe4 {[%emt 0:01:40]} 24. Nxe4 {[%emt 0:00:17]} Rxe4 {[%emt 0:00:02][%cal Be8e4,Be4d4,Bd4d3][%mdl 32]} 25. Qf3 {[%emt 0:00:07]} (25. Qd2 $17 {was called for.}) 25... Qe8 {[%emt 0:01:02]} (25... Nxd4 $19 {has better winning chances.} 26. Qf7+ (26. Bxd4 $2 Rxd4 27. Qf7+ Kh8 $19) 26... Kh8 27. Bxd4 Rxd4) 26. Qf5 {[%emt 0:01:50]} Rd8 {[%emt 0:00:39]} (26... Nxd4 $2 27. Qxd5+ Kh8 28. Bxd4 $18) 27. Rb1 {[%emt 0:01:03]} Nxd4 {[%emt 0:03:19]} 28. Bxd4 {[%emt 0:00:51]} Rxd4 {[%emt 0:00:02]} 29. Rb7 {[%emt 0:00:17][%cal Ob7g7] [#]} Qg6 $1 {[%emt 0:01:03] Strongly threatening ...Qxf5.} 30. Qd7 {[%emt 0:01:16][%mdl 64]} Re8 {[%emt 0:01:20] Threatens to win with ...Rd2.} (30... Rxd7 $2 {leads to mate.} 31. Rb8+) 31. h3 {[%emt 0:00:04][%cal Of1f7] White threatens Rf7! and mate.} Rd3 {[%emt 0:07:56]} 32. Kh2 $2 {[%emt 0:00:13][%mdl 8192] Loses the game.} (32. Qf7+ $17 {is a better chance.} Qxf7 33. Rfxf7) 32... h6 $19 {[%emt 0:01:15]} (32... Rxa3 33. Qxd5+ Kh8 34. Rbf7 $18) 33. Qf7+ {[%emt 0:01:31]} Kh7 {[%emt 0:00:01] And now ...c3 would win.} 34. Rxa7 {[%emt 0:00:31]} c3 {[%emt 0:02:01] [#] aiming for ...c2.} 35. Rc7 {[%emt 0:00:22]} d4 {[%emt 0:00:34]} (35... Qg3+ $142 36. Kh1 Rd2 37. Qf5+ Kh8 38. Qg4 Qxc7 39. Qh5 Rde2 40. Qf7 Qxf7 41. Rxf7 c2 42. Rc7 d4 43. Kh2 d3 44. h4 d2 45. Rf7 d1=Q 46. Rf3 c1=Q 47. Kg3 Qd6+ 48. Kh3 Qc8+ 49. Rf5 Qxf5+ 50. g4 Qxa3#) 36. Qxg6+ {[%emt 0:00:36] Black is clearly winning.} Kxg6 {[%emt 0:06:35] KRR-KRR} 37. Rf4 {[%emt 0:00:25]} Re5 {[%emt 0:00:00]} 38. Rc4 {[%emt 0:00:22]} Rd2 {[%emt 0:00:00]} 39. Rc6+ {[%emt 0:00:45]} Kh7 {[%emt 0:00:00] Hoping for ...Rg5.} 40. h4 {[%emt 0:00:13] Inhibits Rg5.} Ree2 {[%emt 0:00:00]} 41. Rg4 {[%emt 0:30:24]} c2 {[%emt 0:26:47] Weighted Error Value: White=0.78/Black=0.21 (precise)} 0-1